{"text_format":"3","workbook":"xlsx","n_sheets":13,"sheets":["Start","Grundlæggende funktioner","Introduktion til funktioner","GENNEMSNIT","MIN OG MAKS","Dato og klokkeslæt","Sammenkæd tekst og tal","HVIS-sætninger","LOPSLAG","Betingede funktioner","Guiden Funktion","Fejl i formler","Få mere at vide"],"not_rendered":{"images":30,"defined_names":21},"read":"whole","date_system":"1900"}

{"sheet":"Start","index":0,"n_rows":4,"n_cols":1,"rows_kept":4}
[]
["Introduktion til formler"]
["Med bare nogle få trin vil du være i gang med at opbygge formler og funktioner i Excel, \nder er verdens mest effektive regnearksapp."]
["Gå tilbage til toppen ved at trykke på CTRL+HOME. Tryk på CTRL+PAGE DOWN for at starte præsentationen."]

{"sheet":"Grundlæggende funktioner","index":1,"n_rows":43,"n_cols":10,"rows_kept":43}
["Grundlæggende oplysninger: lav matematiske beregninger med Excel"]
["Du kan addere, subtrahere, multiplicere og dividere i Excel uden at bruge nogen indbyggede funktioner. Du skal bare bruge nogle grundlæggende operatorer: +, -, *, /. Alle formler starter med et lig med-tegn (=).\n",null,"Tal, der skal bruges:",null,"Handling:","Formler:","Svar:"]
["Du adderer ved at vælge celle F3, skrive =C3+C4 og så trykke på Enter. \n",null,1,null,"Addering (+) ",null,{"$f":"C3+C4","v":3}]
["Du subtraherer ved at vælge celle F4, skrive =C3-C4 og så trykke på Enter. ",null,2,null,"Subtraktion (-) ",null,{"$f":"C3-C4","v":-1}]
["Du multiplicerer ved at vælge celle F5, skrive =C3*C4 og så trykke på Enter.\n",{"$nulls":3},"Multiplikation (*) ",null,{"$f":"C3*C4","v":2}]
["Du dividerer ved at vælge celle F6, skrive =C3/C4 og så trykke på Enter.\n",{"$nulls":3},"Division (/) ",null,{"$f":"C3/C4","v":0.5}]
["Se dette: Skift tallene i cellerne C3 og C4, og se hvordan formelresultaterne automatisk ændres.",{"$nulls":3},"Opløftning (^) ",null,{"$f":"C3^C4","v":1}]
["EKSTRA KREDIT: Du kan opløfte en værdi til en potens ved at bruge symbolet karat (^), f.eks. =A1^A2. Angiv den med Skift+¨. I celle C7 skal du skrive =C3^C4."]
["Rul ned for at få flere detaljer"]
["Næste trin"]
["Mere om formler, celler og områder"]
["Excel består af individuelle celler, der er grupperet i rækker og kolonner. Rækker er nummererede, og kolonner er markeret med bogstaver. Der er mere end 1 million rækker og 16.000 kolonner, og du kan placere formler i enhver af dem. \n"]
["Formler kan indeholder cellereferencer, rækker af cellereferencer, operatorer og konstanter. Følgende er alle eksempler på formler:\n\n=A1+B1\n=10+20\n=SUM(A1:A10)\n\n"]
["Du vil bemærke, at i vores tredje eksempel ovenfor, brugte vi funktionen SUM. En funktion er en forudkonstrueret kommando, der tager en værdi eller værdier, beregner dem på en bestemt måde og returnerer et resultat. Funktionen SUM tager f.eks. de cellereferencer eller områder, du specificerer, og lægger dem sammen. I dette eksempel tager det cellerne fra A1 til og med A10 og lægger dem sammen. Excel omfatter mere end 400 funktioner, som du kan udforske på fanen Formler.\n"]
["Formler med funktioner starter med et lig med-tegn og derefter funktionsnavnet med dets argumenter (de værdier en funktion anvender til beregning) omgivet af parenteser. \n"]
["Du bekræfter en formel ved at trykke på Enter. Når du gør dette, vil formlen udføre beregningen, og resultatet vises i cellen. Hvis du selv vil se selve formlen, kan du kigge på formellinjen under båndet eller trykke på F2 for at gå til tilstanden Rediger, hvor du vil se formlen i cellen. Tryk på Enter igen for at færdiggøre formlen og beregne resultatet.\n\n"]
["Nogle formelforklaringer"]
["=10+20 er en formel, hvor 10 og 20 er konstanter, og tegnet + er operatoren."]
["=SUM(A1:A10) er en formel, hvor SUM er funktionsnavnet, venstre- og højreparenteserne indeholder formelargumenterne, og A1:A10 er celleområdet for funktionen."]
["=SUM(A1:A10;C1:C10) er en formel, hvor SUM er funktionsnavnet, venstre- og højreparenteserne indeholder formelargumenterne, og A1:A10;C1:C10 er celleområdet for funktionen, adskilt med et semikolon."]
["VÆRD AT VIDE: Konstanter er værdier, som du indtaster i celler eller formler. Mens =10+20 måske beregner det samme som =A1+B1, er det ikke en god ide at bruge konstanter. Hvorfor ikke? Fordi du ikke let kan se konstanten uden at markere cellen og lede efter den. Det kan gøre det svært at ændre senere. Det er meget lettere at placere dine konstanter i celler, hvor de lettere kan justeres og henvises til i dine formler.\n\nFor eksempel: Markér den gule celle med 12 nedenfor. Du vil se, at vi bruger funktionen SUM med en række celler. Vi indtastede ikke \"4\" eller \"8\" direkte i formlen. \n"]
["Forrige"]
["Næste"]
["Flere oplysninger på nettet"]
["Brug Excel som lommeregner"]
["Oversigt over formler i Excel"]
["Excel-funktioner (efter kategori) "]
["Excel-funktioner (alfabetisk) "]
["Gratis onlinekurser i Excel"]
{"$rows_empty":10}
[{"$nulls":9},"Værdier"]
[{"$nulls":9},4]
[{"$nulls":9},8]
[{"$nulls":9},{"$f":"SUM(J41:J42)","v":12}]

{"sheet":"Introduktion til funktioner","index":2,"n_rows":51,"n_cols":7,"rows_kept":51}
["Introduktion til funktioner"]
["Funktioner giver dig mulighed for at udføre en lang række ting, f.eks. udføre matematiske operationer, slå værdier op eller endda beregne datoer og klokkeslæt. Lad os prøve nogle måder til at addere værdier ved hjælp af funktionen SUM.",null,"Frugt","Mængde",null,"Kød","Mængde"]
["Under kolonnen Mængde for Frugt (celle D7) skal du skrive =SUM(D3:D6) eller indtaste =SUM(, og vælge området med musen og trykke på Enter. Dette opsummerer værdierne i cellerne D3, D4, D5 og D6. Dit svar skal være 170.\n",null,"Æbler",50,null,"Okse",50]
["Lad os nu prøve AutoSum. Markér cellen under kolonnen for Kød (celle G7), og gå så til formler > AutoSum > vælg SUM. Du vil se, at Excel automatisk indfører formlen for dig. Tryk på Enter for at bekræfte den. Funktionen AutoSum omfatter alle de mest almindelige funktioner.\n",null,"Appelsiner",20,null,"Kylling",30]
["Her er en smart tastaturgenvej. Markér celle D15, tryk på Alt = og så Enter. Dette indfører automatisk SUM for dig.",null,"Bananer",60,null,"Svin",10]
["Dyk ned for at få flere detaljer",null,"Citroner",40,null,"Fisk",50]
["EKSTRA KREDIT\nPrøv funktion TÆL ved at bruge en af de metoder, du allerede har prøvet. Funktionen TÆL tæller antallet af celler i et område, som indeholder tal.",null,"SUM > ",{"$f":"SUM(D3:D6)","v":170},null,"SUM > "]
["Næste trin"]
["Mere om funktioner",null,"Vare","Mængde",null,"Vare","Mængde"]
["Gå til fanen Formler og gennemse funktionsbiblioteket, hvor funktioner er opdelt efter kategori, f.eks. tekst, dato og klokkeslæt osv. Med Indsæt funktion kan du søge efter funktioner ud fra navn og starte guiden Funktion, som kan hjælpe dig med at opbygge din formel. \n\nNår du begynder at indtaste et funktionsnavn efter tryk på =, startes IntelliSense i Excel, hvori alle de funktioner, der starter med de bogstaver, du indtaster, vises. Når du finder den ønskede funktion, skal du trykke på tabulatortasten, hvorefter funktionsnavnet automatisk fuldføres og venstreparentesen indføres i Excel. Det viser også de valgfri og påkrævede argumenter. \n\n\n\nLad os se nærmere på anatomien af nogle få funktioner. Funktionen SUM har følgende struktur:",null,"Brød",50,null,"Brød",50]
["Hvis funktionen SUM kunne tale, ville den sige \"Returnér summen af alle værdierne i cellerne D35 til D38 og hele kolonne H\". SUM er funktionsnavnet, D35:D38 er det første områdeargument, hvilket næsten altid kræves, og H:H er det andet områdeargument adskilt med semikolon. Lad os nu prøve én, der ikke kræver nogen argumenter.\n",null,"Donuts",100,null,"Donuts",100]
["Funktion IDAG returnerer dags dato. Den opdateres automatisk, når Excel genberegner.",null,"Småkager",40,null,"Småkager",40]
["SE HER\nMarkér disse celler. Derefter skal du i nederste højre hjørne af Excel-vinduet se efter SUM: 170 på nederste linje. Det kaldes statuslinjen og er bare en anden måde til hurtigt at finde en total og andre oplysninger om en valgt celle eller et valgt område. ",null,"Kager",50,null,"Kager",50]
["VIGTIGE OPLYSNINGER\nDobbeltklik på denne celle. Du vil bemærke, at der står 100 mod slutningen. Selvom det er muligt at lægge tal i en formel på denne måde, så anbefaler vi det kun, hvis det er strengt nødvendigt. Tallet kaldes en konstant, og det er nemt at glemme, at det er der. Vi anbefaler, at du henviser til en anden celle i stedet for – f.eks. celle F51. På den måde kan det let ses og er ikke skjult i en formel. ",null,"Tærter",20,null,"Tærter",20]
["Flere oplysninger på nettet",null,"SUM > ",null,null,"TÆL >"]
["Alt om funktionen SUM"]
["Brug AutoSum til at summere tal"]
["Alt om funktionen TÆL"]
["Gratis onlinekurser i Excel"]
["Tilbage til toppen"]
["Næste trin"]
{"$rows_empty":12}
[null,null,"Frugt","Mængde"]
[null,null,"Æbler",50]
[null,null,"Appelsiner",20]
[null,null,"Bananer",60]
[null,null,"Citroner",40]
[null,null,"SUM > ",{"$f":"SUM(D35:D38)","v":170}]
[]
[]
[]
[]
[null,null,"Vare","Mængde"]
[null,null,"Biler",20]
[null,null,"Lastbiler",10]
[null,null,"Cykler",10]
[null,null,"Skøjter",40]
[]
[{"$nulls":3},"I alt:",null,"Yderligere værdi","Ny total"]
[{"$nulls":3},{"$f":"SUM(D45:D48,100)","v":180},null,100,{"$f":"SUM(D45:D48,F51)","v":180}]

{"sheet":"GENNEMSNIT","index":3,"n_rows":15,"n_cols":7,"rows_kept":15}
["Funktionen MIDDEL"]
["Brug funktionen MIDDEL til at udregne MIDDELtet af tal i en række celler.",null,"Frugt","Mængde",null,"Kød","Mængde"]
["Markér celle D7, og brug så guiden AutoSum til at tilføje en MIDDEL-funktion.",null,"Æbler",50,null,"Okse",50]
["Markér nu celle G7, og indtast en MIDDEL-funktion ved at skrive =MIDDEL(G3:G6). ",null,"Appelsiner",20,null,"Kylling",30]
["I celle D15 kan du bruge enten AutoSum eller skrive for at angive en anden MIDDEL-funktion. ",null,"Bananer",60,null,"Svin",10]
["SE HER\nVælg en vilkårlig række tal, og kig så på statuslinjen efter et øjeblikkeligt MIDDEL.\n",null,"Citroner",40,null,"Fisk",50]
["Aktivér det forrige ark",null,"MIDDEL >",null,null,"MIDDEL >"]
["Gå til det næste ark"]
["EKSTRA KREDIT\nPrøv at bruge MEDIAN eller HYPPIGST her. \n\nMEDIAN giver dig værdien i midten af datasættet, mens \nHYPPIGST giver den, der forekommer mest hyppigt.\n",null,"Vare","Mængde",null,"Vare","Mængde"]
["Links til flere oplysninger på internettet",null,"Brød",50,null,"Brød",50]
["Vælg denne for at få alt at vide om funktionen MIDDEL på internettet",null,"Donuts",100,null,"Donuts",100]
["Vælg denne for at få alt at vide om funktionen MEDIAN på internettet",null,"Småkager",40,null,"Småkager",40]
["Vælg denne for at få alt at vide om funktionen HYPPIGST på internettet",null,"Kager",50,null,"Kager",50]
["Vælg for at få mere at vide om Gratis onlinekurser i Excel på internettet",null,"Tærter",20,null,"Tærter",20]
[null,null,"MIDDEL >"]

{"sheet":"MIN OG MAKS","index":4,"n_rows":15,"n_cols":7,"rows_kept":15}
["Funktionerne MIN og MAKS"]
["Brug funktionen MIN til at få vist det mindste tal i et celleområde.",null,"Frugt","Mængde",null,"Kød","Mængde"]
["Brug funktionen MAKS til at få vist det højeste tal i et celleområde.",null,"Æbler",50,null,"Okse",50]
["Klik i celle D7, og brug så guiden AutoSum til at tilføje en MIN-funktion.\n",null,"Appelsiner",20,null,"Kylling",30]
["Markér nu celle G7, og indtast en MAKS-funktion ved at skrive =MAKS(D3:D6).\n",null,"Bananer",60,null,"Svin",10]
["I celle D15 kan du bruge enten guiden AutoSum eller skrive for at angive en MIN- eller MAKS-funktion. \n",null,"Citroner",40,null,"Fisk",50]
["Flere oplysninger på nettet\n",null,"MIN >",null,null,"MAKS >"]
["Alt om funktionen MIN"]
["Alt om funktionen MAKS",null,"Vare","Mængde",null,"Vare","Mængde"]
["Gratis onlinekurser i Excel",null,"Brød",50,null,"Brød",50]
["VÆRD AT VIDE\nDu kan bruge enten MIN eller MAKS med flere områder eller værdier til at vise den højere og den lavere af disse værdier, f.eks. =MIN(A1:A10;B1:B10), eller =MAKS(A1:A10;B1), hvor B1 indeholder en grænseværdi, f.eks. 10, hvilket betyder, at formlen aldrig ville returnere et resultat på under 10.\n",null,"Donuts",100,null,"Donuts",100]
[null,null,"Småkager",40,null,"Småkager",40]
[null,null,"Kager",50,null,"Kager",50]
[null,null,"Tærter",20,null,"Tærter",20]
[null,null,"MIN eller MAKS >",{"$nulls":3},{"$f":"MIN(G10:G14,10)","v":10}]

{"sheet":"Dato og klokkeslæt","index":5,"n_rows":47,"n_cols":6,"rows_kept":47,"merged":[[4,2,4,3],[26,2,26,3],[30,2,30,3],[44,2,44,3]]}
["Datofunktioner"]
["I Excel kan du se den aktuelle dato, der er baseret på computerens internationale indstillinger. Du kan også tilføje eller subtrahere datoer."]
["Se funktionen IDAG, som viser dig dags dato. Dette er direkte eller flygtige funktioner, så når du åbner din projektmappe i morgen, vil morgendagens dato blive vist. Indtast =IDAG() i celle D6. \n"]
["Subtraher datoer – Indtast din næste fødselsdag i formatet DD/MM/ÅÅ i celle D7, og se hvordan der i Excel angives, hvor mange dage der er til det, ved at bruge =D7-D6 i celle D8.\n"]
["Tilføj datoer – Forestil dig, at du vil vide, på hvilken dato en betaling forfalder, eller hvornår du skal returnere en bog, du har lånt på biblioteket. Du kan føje dage til en dato for at finde ud af det. I celle D10 skal du indtaste et vilkårligt antal dage. I celle D11 har vi tilføjet =D6+D10 for at beregne forfaldsdatoen fra i dag.\n",null,"Datofunktioner"]
["VÆRD AT VIDE\nExcel bevarer datoer og klokkeslæt baseret på antallet af dage startende fra 1. januar 1900. Tider bevares i brøkdele af en dag på minutbasis. Det vil sige, at 01-01-2017 00:30 faktisk er gemt som 42736.5208. Hvis dato eller klokkeslæt vises som tal på den måde, kan du trykke på Ctrl+1 > Tal > vælge et dato- eller klokkeslætsformat. ",null,"Dags dato:",null,null,{"$f":"IF(D6=TODAY(),\"Du har forstået det!\",\"\")","v":""}]
["VIGTIGE OPLYSNINGER\nHvis du ikke vil have Excel til at vise et negativt tal, fordi du endnu ikke har indtastet din fødselsdag, kan du bruge en HVIS-funktion sådan her: =HVIS(D7=\"\";\"\";D7-D6), der angiver \"HVIS D7 er lig med ingenting, så vis ingenting, og vis ellers D7 minus D6\".\n",null,"Din fødselsdag:"]
["Tidsfunktioner",null,"Dage indtil din fødselsdag:",{"$f":"D7-D6","v":0}]
["I Excel kan du se det aktuelle klokkeslæt, der er baseret på computerens internationale indstillinger. Du kan også tilføje og subtrahere klokkeslæt. Du vil f.eks. gerne holde styr på, hvor mange timer en medarbejder har arbejdet hver uge, og beregne løn og overtid.\n"]
["I celle D28 skal du skrive =NU(), hvilket giver dig det aktuelle klokkeslæt og opdaterer hvert klokkeslæt, der beregnes i Excel. Hvis du vil ændre klokkeslætsformatet, skal du gå til Ctrl+1 > Tal > Klokkeslæt > Vælg det ønskede format.\n",null,"Udvidet periode, dage:"]
["Addér timer mellem klokkeslæt – I celle D36 har vi indtastet =((D35-D32)-(D34-D33))*24, hvilket beregner nogens start- og sluttider og derefter subtraherer den tid, de brugte til frokostpause. Tegnene *24 til sidst i formlen konverterer den brøkdel af dagen, som registreres i Excel, til timer. Du skal dog formatere cellerne som et tal. Det gør du ved at gå til Hjem > Formatér celler (Ctrl+1) > Tal > Tal > 2 decimaler.\n\n",null,"Faktura forfalder den:",{"$f":"D6+D10","v":"00:00:00"}]
["Hvis denne formel kunne tale, ville den sige \"Tag Tid ud, og subtraher den fra Tid ind, og subtraher så Frokost ud/ind-tider, og multiplicer dem så med 24 for at konvertere tidsbrøkdelene i Excel til timer\", eller =((Tid ud - Tid ind)-(Frokost ind - Frokost ud))*24."]
["Forrige"]
["Næste"]
["Flere oplysninger på nettet"]
["Alt om funktionen IDAG"]
["Alt om funktionen NU"]
["Alt om funktionen DATO"]
["Gratis onlinekurser i Excel"]
{"$rows_empty":7}
[null,null,"Tidsfunktioner"]
[null,null,"Aktuelt klokkeslæt:"]
[]
[]
[null,null,"Daglige arbejdstimer"]
[null,null,"Tid ind:","08:00:00"]
[null,null,"Frokost ud:","12:00:00"]
[null,null,"Frokost ind:","13:00:00"]
[null,null,"Tid ud:","17:00:00"]
[null,null,"Samlet antal timer:",{"$f":"((D35-D32)-(D34-D33))*24","v":8.000000000000002}]
{"$rows_empty":8}
[null,null,"Statisk dato og klokkeslæt"]
[null,null,"Dato:","2017-09-27"]
[null,null,"Klokkeslæt:","08:52:00"]

{"sheet":"Sammenkæd tekst og tal","index":6,"n_rows":37,"n_cols":6,"rows_kept":37,"merged":[[26,2,26,3],[30,2,30,3],[34,2,34,3]]}
["Sammenkædning af tekst fra forskellige celler"]
["Der er mange gange i Excel, hvor du vil sammenkæde tekst, der findes i forskellige celler. Dette eksempel er meget typisk, hvor du har for- og efternavn og vil kombinere dem som fornavn, efternavn eller fulde navn. Heldigvis kan det gøres i Excel ved hjælp af og-tegnet (&), som du kan indtaste med Skift+6.\n",null,"Fornavn","Efternavn","Efternavn, Fornavn","Fulde navn"]
["I celle E3 skal du skrive =D3&C3 for at sammenkæde efter- og fornavne. \n",null,"Nancy","Smith",{"$f":"D3&\", \"&C3","v":"Smith, Nancy"},{"$f":"C3&\" \"&D3","v":"Nancy Smith"}]
["SmithNancy ser dog ikke helt rigtigt ud. Vi skal tilføje et komma og et mellemrum. Det gøres ved at bruge anførselstegn til at oprette en ny tekststreng. Denne gang skal du indtaste =D3&\",\"&C3. Delen &\", \"& lader os sammenkæde et komma og et mellemrum med teksten i cellerne.\n",null,"Andy","North"]
["Du opretter det fulde navn ved først at sammenkæde for- og efternavn, men med brug af et mellemrum uden et komma. I F3 skal du skrive =C3&\" \"&D3.\n",null,"Jan","Kotas"]
["Dyk ned for at få flere detaljer",null,"Mariya","Jones"]
["Næste",null,"Steven","Thorpe"]
["Brug af tekst og tal sammen",null,"Michael","Neipper"]
["Nu bruger vi & til at sammenkæde tekst og tal og ikke kun tekst og tekst.\n\nKig på cellerne C28:D29. Kan du se, hvordan datoerne og klokkeslættene er i separate celler? Du kan sammenkæde dem med &-symbolet, som du vil se i cellerne C32:C33, men det ser ikke helt rigtigt ud, gør det? Uheldigvis ved Excel ikke, hvordan du vil formatere tallene, så det bryder dem ned til deres mest simple format, hvilket i dette tilfælde er den serielle dato. Vi skal fortælle Excel specifikt, hvordan taldelen af formlen skal formateres, så den vises, som du vil have det, i den resulterende tekststreng. Det kan du gøre med funktionen TEKST og en formatkode.",null,"Robert","Zare"]
["I celle C36 skal du skrive =C28&\" \"&TEKST(D28;\"DD-MM-ÅÅÅÅ\"). DD-MM-ÅÅÅÅ er den danske formatkode for Dag-måned-år, f.eks. 25-09-2017.\n",null,"Yvonne","McKay"]
["I celle C37 skal du skrive =C29&\" \"&TEKST(D29;\"tt:mm\"). tt:mm er det danske kode for Timer:Minutter, f.eks. 13:30.\n\n"]
["SE HER\nFormler, og specielt længere formler, kan nogle gange være svære at læse, men du kan opdele deres dele som her:\n\n=C28 & \" \" & TEKST(D28;\"DD-MM-ÅÅÅÅ\")"]
["VÆRD AT UDFORSKE\nHvis du ikke ved, hvilken formatkode, du skal bruge, kan du bruge Ctrl+1 > Tal til at formatere enhver celle på den måde, du vil. Vælg derefter indstillingen Brugerdefineret. Du kan kopiere den formatkode, der vises, til din formel."]
["Flere oplysninger på nettet"]
["Alt om funktionen TEKST"]
["Kombiner tekst og tal"]
["Gratis onlinekurser i Excel"]
{"$rows_empty":9}
[null,null,"Brug tekst og tal"]
[null,null,"Dags dato:",{"$f":"TODAY()","v":"2021-10-19"}]
[null,null,"Aktuelt klokkeslæt:",{"$f":"NOW()","v":44488.37954212963}]
[]
[null,null,"Sammenkædning af tekst og tal"]
[null,null,{"$f":"C28&\" \"&D28","v":"Dags dato: 44488"}]
[null,null,{"$f":"C29&\" \"&D29","v":"Aktuelt klokkeslæt: 44488.3795421296"}]
[]
[null,null,"Formatering af tekst og tal"]
[null,null,{"$f":"C28 &\" \"& TEXT(D28,\"DD-MM-ÅÅÅÅ\")","v":"Dags dato: 19-10-Tuesday"}]
[null,null,{"$f":"C29&\" \"&TEXT(D29,\"tt:mm\")","v":"Aktuelt klokkeslæt: tt:10"}]

{"sheet":"HVIS-sætninger","index":7,"n_rows":37,"n_cols":6,"rows_kept":37,"merged":[[7,2,7,3]]}
["HVIS-sætninger"]
["HVIS-sætninger gør det muligt at foretage logiske sammenligninger mellem betingelser. En HVIS-sætning angiver generelt, at hvis én betingelse er sand, skal der gøres én ting og i modsat fald noget andet. Formlerne kan returnere tekst, værdier eller endnu flere beregninger."]
["I celle D9 skal du skrive =HVIS(C9=\"Æble\";SAND;FALSK). Det rigtige svar er SAND. \n"]
["Kopiér D9 til D10. Svaret her skal være FALSK, fordi en appelsin ikke er et æble.\n"]
["Prøv et andet eksempel ved at kigge på formlen i celle D12. Du startede med =HVIS(C12<100;\"Mindre end 100\";\"Større end eller lig med 100\"). Hvad sker der, hvis du indtaster et tal, der er større end 100 i celle C12?\n"]
["VIGTIGE OPLYSNINGER\nSAND og FALSK er ikke som andre ord i Excel-formler, fordi de ikke behøver at være i anførselstegn, og fordi de automatisk skrives med stort i Excel. Tal behøver heller ikke at være i anførselstegn. Almindelig tekst, f.eks. Ja eller Nej, skal være i anførselstegn, som vist her: \n=Hvis(C9 =\"Æble\";\"Ja\";\"Nej\")"]
["Rul ned for at få flere detaljer"]
["Næste",null,"HVIS-sætninger"]
["HVIS-sætning med en anden funktion",null,"Æble"]
["HVIS-sætninger kan også fremtvinge gennemførelsen af flere beregninger, hvis en bestemt betingelse er opfyldt. Her evaluerer vi en celle for at se, om der skal opkræves moms, og beregner den, hvis betingelsen er sand.\n",null,"Appelsin"]
["I celle F33 har vi indtastet =HVIS(E33=\"Ja\";F31*Moms;0), hvor vi konfigurerer Moms som et navngivet område med en værdi på 0,0825. Vores formel angiver, at Hvis celle E33 svarer til Ja, så skal celle F31 multipliceres med Moms, og ellers skal der returneres et 0.\n\nPrøv at ændre Ja til Nej i celle E33 for at se ændringen i beregningen."]
["Derefter har vi tilføjet en HVIS-sætning til beregning af forsendelse, hvis det er nødvendigt. I celle F35 vil du se =HVIS(E35=\"Ja\";SUM(D28:D29)*1,25;0). Det angiver, at \"Hvis celle E35 er Ja, skal summen af kolonnen Mængde i tabellen ovenfor tages og multipliceres med 1,25, og ellers skal returneres et 0\".\n",null,50,{"$f":"IF(C12<100,\"Mindre end 100\",\"Større end eller lig med 100\")","v":"Mindre end 100"}]
["Derefter skal du ændre 1,25 i formlen i celle F35 til \"Forsendelse\". Når du begynder at skrive, vil autokorrektionen i Excel finde det for dig. Når det vises, skal du trykke på tabulatortasten for at angive det. Dette er navngivet område, og vi har indtastet det via Formler > Definer navn. Hvis du herefter skulle få brug for at ændre dine forsendelsesomkostninger, skal du bare gøre det ét sted, og du kan bruge forsendelsesnavnet hvor som helst i projektmappen.\n\n"]
["VÆRD AT VIDE\nNår du opretter en formel, indsættes farvede kanter automatisk omkring alle områder, der henvises til i formlen, i Excel, og de tilsvarende områder i formlen vil have samme farve. Du kan se dette, hvis du vælger cellen F33 og trykker på F2 for at redigere formlen."]
["EKSPERTTIP\nNavngivne områder gør det muligt at definere ord eller værdier på ét sted og så genbruge dem i hele projektmappen. Du kan få vist alle de navngivne områder i denne projektmappe ved at gå til Formler > Navnestyring. Klik her for at få mere at vide.\n"]
["Forrige"]
["Næste"]
["Flere oplysninger på nettet"]
["Alt om funktionen HVIS"]
["Alt om funktionen HVISER"]
["Avancerede HVIS-sætninger"]
["Gratis onlinekurser i Excel"]
[]
[]
[]
[]
[null,null,"Vare","Mængde","Omkostning","Total"]
[null,null,"Widget",2,{"v":9.760711585683554,"d":"kr. 9.76"},{"$f":"'HVIS-sætninger'!$E$28:$E$29*'HVIS-sætninger'!$D$28:$D$29","v":{"v":19.521423171367108,"d":"kr. 19.52"}}]
[null,null,"Doohickey",3,{"v":3.4189202461080024,"d":"kr. 3.42"},{"v":10.256760738324008,"d":"kr. 10.26"}]
[]
[{"$nulls":3},"Subtotal",{"$f":"SUM('HVIS-sætninger'!$E$28:$E$29)","v":{"v":13.179631831791557,"d":"kr. 13.18"}},{"$f":"SUM('HVIS-sætninger'!F28:F29)","v":{"v":29.778183909691116,"d":"kr. 29.78"}}]
[]
[{"$nulls":3},"Moms?","Ja",{"$f":"IF(E33=\"Ja\",F31*Moms,0)","v":{"v":2.456700172549517,"d":"kr. 2.46"}}]
[]
[{"$nulls":3},"Forsendelse?","Ja",{"$f":"IF(E35=\"Ja\",SUM(D28:D29)*1.25,0)","v":{"v":6.25,"d":"kr. 6.25"}}]
[]
[{"$nulls":3},"Total",null,{"$f":"SUM(F33,F31,F35)","v":{"v":38.48488408224063,"d":"kr. 38.48"}}]

{"sheet":"LOPSLAG","index":8,"n_rows":43,"n_cols":7,"rows_kept":43}
["LOPSLAG"]
["LOPSLAG er en af de mest almindeligt brugte funktioner i Excel (og også en af vores favoritter). LOPSLAG gør det muligt at slå en værdi op i en kolonne til venstre og derefter få returneret oplysninger i en anden kolonne til højre, hvis der findes et resultat. LOPSLAG siger:\n"]
["=LOPSLAG(A1;B:C;2;FALSK)"]
["Hvad vil du lede efter?"]
["Hvis du finder det, hvor mange kolonner til højre vil du så have, skal indeholde en værdi?"]
["Hvor vil du lede efter det?"]
["Vil du have en nøjagtig eller anslået sammenligning?"]
["I celle D22 skal du skrive =LOPSLAG(C22;C17:D20;2;FALSK). Det korrekte svar for Æbler er 50. LOPSLAG søgte efter Æbler, fandt det, og gennemgik så én kolonne til højre og returnerede antallet.\n\n"]
["Prøv det nu selv i afsnittet Kød i celle G22. Du skulle gerne ende med =LOPSLAG(F22;F17:G20;2;FALSK).\n\n"]
["EKSPERIMENT\nPrøv at vælge forskellige elementer på rullelisterne. Du vil se, at resultatcellerne straks opdateres med nye værdier."]
["Dyk ned for at få flere detaljer"]
["Næste"]
["LOPSLAG og #I/T"]
["Du vil utvivlsomt løbe ind i en situation, hvor LOPSLAG ikke kan finde det, du bad om, og der returneres en fejl (#I/T). Nogle gange skyldes det, at opslagsværdien simpelthen ikke findes, eller det kan skyldes, at referencecellen endnu ikke har en værdi.\n"]
["Hvis du ved, at din opslagsværdi findes, men vil skjule fejlen, hvis opslagscellen er tom, kan du bruge en HVIS-sætning. I så fald omgiver vi vores eksisterende LOPSLAG-formel som følgende i celle D43:\n\n=HVIS(C43=\"\";\"\";LOPSLAG(C43;C37:D41;2;FALSK))\n\nDette angiver, om celle C43 er lig med ingenting (\"\"), returnerer derefter ingenting, og returnerer ellers resultaterne af LOPSLAG. Bemærk den anden højreparentes til sidst i formlen. Den lukker HVIS-sætningen.\n"]
["Hvis du ikke er sikker på, at din opslagsværdi findes, men du stadig vil undertrykke fejlen #I/T, kan du bruge en funktion til håndtering af fejl, der kaldes HVIS.FEJL i celle G43: =HVIS.FEJL(LOPSLAG(F43;F37:G41;2;FALSK);\"\"). HVIS.FEJL angiver, om LOPSLAG returnerer et gyldigt resultat, og derefter viser det og ellers viser ingenting (\"\"). Vi har ikke vist noget her (\"\"), men du kan også bruge tal (0, 1, 2 osv.) eller tekst, f.eks. \"Formlen er ikke rigtig\".\n",null,"Frugt","Mængde",null,"Kød","Mængde"]
["VIGTIGE OPLYSNINGER\nHVIS.FEJL er det, der kaldes en tom fejlbehandler, hvilket betyder, at den vil undertrykke enhver fejl, som din formel kunne udløse. Det kan give problemer, hvis der i Excel vises en meddelelse om, at din formel indeholder en reel fejl, der skal rettes.\n\nEn tommelfingerregel er ikke at føje fejlbehandlere til dine formler, før du er helt sikker på, at de fungerer korrekt.",null,"Æbler",50,null,"Okse",50]
["Forrige",null,"Appelsiner",20,null,"Kylling",30]
["Næste",null,"Bananer",60,null,"Svin",10]
["Flere oplysninger på nettet",null,"Citroner",40,null,"Fisk",50]
["Alt om funktionen LOPSLAG"]
["Alt om funktionerne INDEKS/SAMMENLIGN",null,"Æbler",null,null,"Svin"]
["Alt om funktionen HVIS.FEJL"]
["Brug pivottabeller til at analysere regnearksdata"]
["Gratis onlinekurser i Excel"]
{"$rows_empty":9}
[null,null,"Hvis funktionen SUM i celle D42 kunne tale, ville den sige følgende: Læg værdierne sammen i cellerne D38, D39, D40 og D41."]
[null,null,"Vare","Mængde",null,"Vare","Mængde"]
[null,null,"Brød",50,null,"Brød",50]
[null,null,"Donuts",100,null,"Donuts",100]
[null,null,"Småkager",40,null,"Småkager",40]
[null,null,"Kager",50,null,"Kager",50]
[null,null,"Tærter",20,null,"Tærter",20]
[]
[{"$nulls":3},{"$f":"VLOOKUP(C43,C37:D41,2,FALSE)","v":{"$error":"#N/A"}},null,"Bagværk",{"$f":"IFERROR(VLOOKUP(F43,F37:G41,2,FALSE),\"\")","v":""}]

{"sheet":"Betingede funktioner","index":9,"n_rows":123,"n_cols":34,"rows_kept":123}
["Betingede funktioner – SUM.HVIS"]
["Med betingede funktioner kan du udregne sum, gennemsnit, udføre tælling eller finde min. eller maks. for et område ud fra en given betingelse eller et givet kriterium, som du specificerer. Det kunne være: Hvor mange ud af alle frugterne på listen er æbler? Eller: Hvor mange appelsiner er af typen Florida?",null,"Frugt","Mængde",null,"Frugt","Type","Mængde",{"$nulls":17},"Frugt",null,"Æbler",null,"Appelsiner",null,"Bananer",null,"Citroner"]
["Med SUM.HVIS kan du summere i ét område ud fra et bestemt kriterium, som du leder efter i et andet område, f.eks. hvor mange æbler du har. Markér celle D17, og skriv =SUM.HVIS(C3:C14;C17;D3:D14). SUM.HVIS er struktureret som følgende:",null,"Æbler",50,null,"Æbler","Fuji",50,{"$nulls":17},"Æbler",null,"Fuji",null,"Florida",null,"Cavendish",null,"Grov"]
[{"$f":"SUMIF(C3:C14,C17,D3:D14)","v":150},null,"Appelsiner",20,null,"Appelsiner","Florida",20,{"$nulls":17},"Appelsiner",null,"Honeycrisp",null,"Navle",null,"Lady Finger",null,"Eureka"]
["Hvilket område vil du kigge på?",null,"Bananer",60,null,"Bananer","Cavendish",60,{"$nulls":17},"Bananer"]
["Hvilken værdi (tekst eller tal) vil du søge efter?",null,"Citroner",40,null,"Citroner","Grov",40,{"$nulls":17},"Citroner"]
["Hvilket område vil du opsummere i for hvert fundet resultat?",null,"Æbler",50,null,"Æbler","Honeycrisp",50]
["SUM.HVISER er det samme som SUM.HVIS, men det lader dig bruge flere kriterier. Så i dette eksempel kan du søge efter Frugt og Type i stedet for bare Frugt. Markér celle H17, og skriv =SUM.HVISER(H3:H14;F3:F14;F17;G3:G14;G17). SUM.HVISER er struktureret som følgende:\n",null,"Appelsiner",20,null,"Appelsiner","Navle",20]
["=SUM.HVISER(H3:H14;F3:F14;F17;G3:G14;G17)",null,"Bananer",60,null,"Bananer","Lady Finger",60]
["Hvilket område vil du opsummere?",null,"Citroner",40,null,"Citroner","Eureka",40]
["Dette er det første område, der skal søges i efter resultater",null,"Æbler",50,null,"Æbler","Honeycrisp",50]
["Dette er kriteriet for det første resultat",null,"Appelsiner",20,null,"Appelsiner","Navle",20]
["Dette er det andet område, der skal søges i efter resultater",null,"Bananer",60,null,"Bananer","Cavendish",60]
["Dette er kriteriet for det andet resultat",null,"Citroner",40,null,"Citroner","Eureka",40]
["EKSPERTTIP\nHver af cellerne for Frugt og Type har en rulleliste, hvor du kan vælge forskellige frugter. Prøv det, og se, hvordan formlerne automatisk opdateres."]
["Dyk ned for at få flere detaljer",null,"Frugt","SUM.HVIS",null,"Frugt","Type","SUM.HVISER"]
["Næste trin",null,"Æbler",null,null,"Appelsiner","Florida"]
["Betingede funktioner – TÆL.HVIS"]
["TÆL.HVIS og TÆL.HVISER lader dig tælle værdier i et område ud fra et kriterium, du vælger. De er en smule anderledes end de andre HVIS- og HVISER-funktioner derved, at de kun har et kriterieområde og kriterier. De evaluerer ikke kun ét område og kigger så i et andet for at opsummere."]
["Markér celle D64, og skriv =TÆL.HVIS(C50:C61;C64). TÆL.HVIS er struktureret som følgende:"]
["=TÆL.HVIS(C50:C61;C64)"]
["Hvilket område vil du kigge på?"]
["Hvilken værdi (tekst eller tal) vil du søge efter?"]
["TÆL.HVISER er det samme som SUM.HVIS, men det lader dig bruge flere kriterier. Så i dette eksempel kan du søge efter Frugt og Type i stedet for bare Frugt. Markér celle H64, og skriv =TÆL.HVISER(F50:F61;F64;G50:G61;G64). TÆL.HVISER er struktureret som følgende:\n"]
["=TÆL.HVISER(F50:F61;F64;G50:G61;G64)"]
["Dette er det første område, der skal tælles"]
["Dette er kriteriet for det første resultat"]
["Dette er det andet område, der skal tælles"]
["Dette er kriteriet for det andet resultat"]
["Dyk ned for at få flere detaljer"]
["Næste"]
["Flere betingede funktioner"]
["Du har allerede set SUM.HVIS, SUM.HVISER, TÆL.HVIS og TÆL.HVISER. Nu kan selv prøve med de andre funktioner, f.eks. MIDDEL.HVIS/HVISER, MAKS.HVISER, MINHVISER. De er alle struktureret på samme måde, så når du får skrevet én formel, kan du bare erstatte funktionsnavnet med det, du ønsker. Vi har skrevet alle de funktioner, du skal bruge til celle E106, så du kan kopiere/indsætte disse eller selv prøve at skrive dem for at øve dig.\n\nSUM.HVIS \t=SUM.HVIS(C92:C103;C106;E92:E103) \nSUM.HVISER \t=SUM.HVISER(E92:E103;C92:C103;C106;D92:D103;D106) \nMIDDEL.HVIS \t=MIDDEL.HVIS(C92:C103;C106;E92:E103) \nMIDDEL.HVISER\t=MIDDEL.HVISER(E92:E103;C92:C103;C106;D92:D103;D106)\nTÆL.HVIS \t=TÆL.HVIS(C92:C103;C106)\nTÆL.HVISER \t=TÆL.HVISER(C92:C103;C106;D92:D103;D106) \nMAKS.HVISER \t=MAKS.HVISER(E92:E103;C92:C103;C106;D92:D103;D106)\nMIN.HVISER \t=MIN.HVISER(E92:E103;C92:C103;C106;D92:D103;D106)\n"]
["Dyk ned for at få flere detaljer"]
["Næste"]
["SUM.HVIS med et værdiargument"]
["Her et eksempel på funktionen SUM.HVIS, hvor der bruges større end (>) til at finde alle værdier, der er større end en given mængde:"]
[{"$f":"SUMIF(D118:D122,\">=50\")","v":200}]
["Opsummer nogle værdier baseret på dette kriterium:"]
["... Gennemse disse celler...\n "]
["... og hvis værdien er større end 50, så opsummer den.\n "]
["BEMÆRK! Hvis du finder ud af, at du opretter en masse betingede formler, kan du måske få mere ud af at bruge en løsning med pivottabel. Se denne artikel om pivottabeller for at få flere oplysninger."]
["Flere oplysninger på nettet"]
["Alt om funktionen SUM.HVIS"]
["Alt om funktionen SUM.HVISER"]
["Alt om funktionen TÆL.HVIS"]
["Alt om funktionen TÆL.HVISER"]
["Alt om funktionen MIDDEL.HVIS"]
["Alt om funktionen MIDDEL.HVISER",null,"Frugt","Mængde",null,"Frugt","Type","Mængde"]
["Alt om funktionen MIN.HVISER",null,"Æbler",50,null,"Æbler","Fuji",50]
["Alt om funktionen MAKS.HVISER",null,"Appelsiner",20,null,"Appelsiner","Florida",20]
["Opret en rulleliste",null,"Bananer",60,null,"Bananer","Cavendish",60]
["Gratis onlinekurser i Excel",null,"Citroner",40,null,"Citroner","Grov",40]
["Tilbage til toppen",null,"Æbler",50,null,"Æbler","Honeycrisp",50]
["Næste",null,"Appelsiner",20,null,"Appelsiner","Navle",20]
[null,null,"Bananer",60,null,"Bananer","Lady Finger",60]
[null,null,"Citroner",40,null,"Citroner","Eureka",40]
[null,null,"Æbler",50,null,"Æbler","Honeycrisp",50]
[null,null,"Appelsiner",20,null,"Appelsiner","Navle",20]
[null,null,"Bananer",60,null,"Bananer","Cavendish",60]
[null,null,"Citroner",40,null,"Citroner","Eureka",40]
[]
[null,null,"Frugt","TÆL.HVIS",null,"Frugt","Type","TÆL.HVISER"]
[null,null,"Æbler",{"$f":"COUNTIF(C50:C61,C64)","v":3},null,"Appelsiner","Florida",{"$f":"COUNTIFS(F50:F61,F64,G50:G61,G64)","v":1}]
{"$rows_empty":26}
[null,null,"Frugt","Type","Mængde"]
[null,null,"Æbler","Fuji",50]
[null,null,"Appelsiner","Florida",20]
[null,null,"Bananer","Cavendish",60]
[null,null,"Citroner","Grov",40]
[null,null,"Æbler","Honeycrisp",50]
[null,null,"Appelsiner","Navle",20]
[null,null,"Bananer","Lady Finger",60]
[null,null,"Citroner","Eureka",40]
[null,null,"Æbler","Honeycrisp",50]
[null,null,"Appelsiner","Navle",20]
[null,null,"Bananer","Cavendish",60]
[null,null,"Citroner","Eureka",40]
[]
[null,null,"Frugt","Type","Prøv det"]
[null,null,"Citroner","Eureka",{"$f":"AVERAGEIFS(E92:E103,C92:C103,C106,D92:D103,D106)","v":40}]
{"$rows_empty":10}
[null,null,"Vare","Mængde"]
[null,null,"Brød",50]
[null,null,"Donuts",100]
[null,null,"Småkager",40]
[null,null,"Kager",50]
[null,null,"Tærter",20]
[{"$nulls":3},{"$f":"SUMIF(D118:D122,\">=50\")","v":200}]

{"sheet":"Guiden Funktion","index":10,"n_rows":14,"n_cols":4,"rows_kept":14}
["Lad guiden Funktion assistere dig"]
["Hvis du kender navnet på den ønskede funktion, men du ikke er sikker på, hvordan du skal opbygge den, kan du bruge guiden Funktion til at hjælpe dig.\n"]
["Markér celle D10, og gå derefter til Formler > Indsæt funktion > skriv LOPSLAG i feltet Søg efter en funktion og tryk på Udfør. Når LOPSLAG er fremhævet, skal du klikke på OK nederst. Når du vælger en funktion på listen, vises dens syntaks i Excel.\n"]
["Derefter skal du indtaste funktionsargumenterne i deres respektive tekstbokse. Mens du indtaster hver enkelt, evalueres de i Excel, og du vises dets resultat med det endelige resultat nederst. Mens du indtaster hver sektion vises kriterierne for hvert argument nederst i formularen. Tryk på OK, når du er færdig, hvorefter Excel indfører formlen for dig.\n\n\n",null,"Frugt","Mængde"]
["SE HER\nDu skulle gerne ende med =LOPSLAG(C10;C5:D8;2;FALSK).",null,"Æbler",50]
["VÆRD AT VIDE\nDu kan angive celle- og områdereferencer, eller du kan vælge dem med musen.",null,"Appelsiner",20]
["VÆRD AT VIDE\nMens du angiver hvert arguments sektion, vises argumentets beskrivelse mod slutningen af formularen over formelresultatet.\n",null,"Bananer",60]
["Forrige",null,"Citroner",40]
["Næste"]
["Flere oplysninger på nettet",null,"Æbler",{"$f":"VLOOKUP(C10,C5:D8,2,FALSE)","v":50}]
["Oversigt over formler i Excel"]
["Excel-funktioner (efter kategori)"]
["Excel-funktioner (alfabetisk)"]
["Gratis onlinekurser i Excel"]

{"sheet":"Fejl i formler","index":11,"n_rows":36,"n_cols":4,"rows_kept":36}
["Rettelse af fejl I formler"]
["På et eller andet tidspunkt støder du på en formel, der indeholder en fejl. Det vises med #Fejlnavn i Excel. Fejl kan være nyttige, fordi de viser, når noget ikke fungerer rigtigt, men de kan være svære at rette. Heldigvis er der flere funktioner, der kan hjælpe dig med at spore fejlkilden og rette den.\n"]
["Fejlkontrol – Gå til Formler > Fejlkontrol. Det indlæser en dialogboks, der kan vise dig den generelle årsag til din specifikke fejl. I celle D9 forårsages fejlen #I/T af, at der ikke er nogen værdi, der svarer til \"Æble\". Du kan rette dette ved at bruge en værdi, der findes, undertrykke fejlen med HVIS.FEJL eller ignorere den og vide, at den forsvinder, når du bruger en værdi, der findes.\n",null,"Frugt","Mængde"]
["Hvis du klikker på Hjælp til denne fejl, åbnes et Hjælp-emne til den specifikke fejlmeddelelse. Hvis du klikker på Vis beregningstrin, indlæses dialogboksen Evaluer formel.\n",null,"Æbler",50]
["Hver gang du klikker på Evaluer, gennemgås formlen ét afsnit ad gangen i Excel. Der angives ikke nødvendigvis, hvorfor en fejl opstår, men der påpeges hvor. Derfra kan du kigge på Hjælp-emnet for at udlede, hvad der gik galt med din formel.\n",null,"Appelsiner",20]
["EKSPERIMENT\nHvad er der galt her? Tip: Vi forsøger at udregne en SUM af alle elementerne.",null,"Bananer",60]
["VÆRD AT VIDE\nNår du klikker på Indstillinger, vil du kunne indstille reglerne for, hvornår fejl i Excel vises eller ignoreres.\n",null,"Citroner",40]
["Forrige"]
["Næste",null,"Æble",{"$f":"VLOOKUP(C9,C3:D7,2,FALSE)","v":{"$error":"#N/A"}}]
["Flere oplysninger på nettet"]
["Find fejl i formler"]
["Sådan undgår du ødelagte formler"]
["Evaluer en integreret formel ét trin ad gangen"]
["Gratis onlinekurser i Excel"]
{"$rows_empty":15}
[null,null,"Frugt","Mængde"]
[null,null,"Æbler",50]
[null,null,"Appelsiner",20]
[null,null,"Bananer",60]
[null,null,"Citroner",40]
[]
[null,null,"Total",{"$f":"sume(D31:D34)","v":{"$error":"#NAME?"}}]

{"sheet":"Få mere at vide","index":12,"n_rows":5,"n_cols":1,"rows_kept":5}
["Har du flere spørgsmål om Excel?"]
["Tryk på ALT+Q, og skriv det, du vil vide."]
["Bare fortsæt. Få mere at vide om Excel:"]
["Community: Stil spørgsmål, og opret forbindelse til andre Excel-tilhængere.\n"]
["Andre nyheder?\nOffice 365-abonnenter får løbende opdateringer og nye funktioner.\n\n"]